bitfinex-derivatives/quotes_SOLF0:USTF0_20260116
["timestamp","ask_amount","ask_price","bid_price","bid_amount"]
[1768544054605,5.18437864,142.9,142.85,61.97753]
[1768544054908,5.18437864,142.89,142.85,61.97753]
[1768544055107,5.18437864,142.88,142.85,61.97753]
[1768544055304,45.42269034,142.91,142.85,61.97753]
[1768544055608,5.18454466,142.9,142.85,61.97753]
[1768544055808,5.18454466,142.89,142.85,61.97753]
[1768544056005,5.18454466,142.88,142.85,61.97753]
[1768544056204,45.42269034,142.91,142.85,61.97753]
[1768544056408,5.18476809,142.9,142.85,61.97753]
[1768544056609,5.18476809,142.89,142.85,61.97753]
[1768544056911,5.18476809,142.88,142.85,61.97753]
[1768544057111,45.42269034,142.91,142.85,61.97753]
[1768544057305,5.18490697,142.9,142.85,61.97753]
[1768544057504,5.18490697,142.89,142.85,61.97753]
[1768544057708,5.18490697,142.88,142.85,61.97753]
[1768544057908,45.42269034,142.91,142.85,61.97753]
[1768544058106,5.18493437,142.9,142.85,61.97753]
[1768544058309,5.18493437,142.89,142.85,61.97753]
[1768544058511,5.18493437,142.88,142.85,61.97753]
[1768544058708,45.42269034,142.91,142.85,61.97753]
[1768544058905,5.18495332,142.9,142.85,61.97753]
[1768544059210,5.18495332,142.89,142.85,61.97753]
[1768544059406,5.18495332,142.88,142.85,61.97753]
[1768544059610,45.42269034,142.91,142.85,61.97753]
[1768544059810,5.18570534,142.9,142.85,61.97753]
[1768544060011,45.42269034,142.91,142.85,61.97753]
[1768544060012,5.18570534,142.89,142.85,61.97753]
[1768544060214,45.42269034,142.91,142.85,61.97753]
[1768544060907,51.72329034,142.91,142.85,61.97753]
[1768544062913,50.6982767,142.9,142.85,61.97753]
[1768544071119,52.2958624,142.9,142.85,61.97753]
[1768544071320,50.6982767,142.9,142.85,61.97753]
[1768544073923,44.3971767,142.9,142.85,61.97753]
[1768544079926,50.6983767,142.9,142.85,61.97753]
[1768544081421,52.2959624,142.9,142.85,61.97753]
[1768544081722,52.2959624,142.9,142.85,17.24204888]
[1768544082227,6.3014,142.89,142.85,17.24204888]
[1768544084334,6.3014,142.89,142.85,1.18399065]
[1768544084535,6.3014,142.89,142.85,9.065e-05]
[1768544085334,6.302,142.88,142.85,9.065e-05]
[1768544087330,44.25981001,142.88,142.83,30.93467913]
[1768544087637,44.25981001,142.88,142.83,7.913e-05]
[1768544088938,6.303,142.86,142.83,7.913e-05]
[1768544089230,5.20131029,142.85,142.83,7.913e-05]
[1768544089639,98.0227,142.89,142.83,7.913e-05]
[1768544089934,140.68492431,142.89,142.83,7.913e-05]
[1768544090932,6.303,142.86,142.83,7.913e-05]
[1768544093947,6.304,142.83,142.76,116.0]
[1768544094337,46.1757256,142.86,142.76,116.0]
[1768544094537,46.1757256,142.86,142.76,117.5975857]
[1768544095344,44.5781399,142.86,142.76,117.5975857]
[1768544096038,44.5781399,142.92,142.79,28.83608132]
[1768544096241,1.5975857,142.88,142.8,28.83608132]
[1768544096444,46.1757256,142.88,142.8,28.83608132]
[1768544100745,46.1757256,142.88,142.8,35.14128132]
[1768544100946,46.1757256,142.88,142.81,29.49234746]
[1768544101148,44.5781399,142.88,142.81,29.49234746]
[1768544101349,44.5781399,142.88,142.82,29.49234746]
[1768544102944,44.5781399,142.88,142.82,35.79654746]
[1768544106856,21.01,142.96,142.83,30.112239]
[1768544106857,46.1757256,142.92,142.83,30.112239]
[1768544107654,44.5781399,142.92,142.84,30.23167241]
[1768544108660,44.5781399,142.92,142.86,6.3025]
[1768544108958,44.5781399,142.92,142.86,36.76893134]
[1768544110655,44.5781399,142.92,142.87,6.302]
[1768544111058,44.5781399,142.92,142.86,30.46643134]
[1768544111257,44.5781399,142.92,142.88,6.3016]
[1768544112355,32.8596399,142.92,142.89,6.3011]
[1768544114059,22.3542399,142.92,142.89,6.3011]
[1768544114257,1.5975857,142.95,142.89,6.3011]
[1768544115164,1.5975857,142.93,142.87,48.82976888]
[1768544115753,1.5975857,142.93,142.87,6.302]
[1768544116160,44.5781399,142.92,142.87,6.302]
[1768544116561,46.1757256,142.91,142.87,6.302]
[1768544117863,44.5781399,142.91,142.87,6.302]
[1768544118054,46.1757256,142.91,142.87,6.302]
[1768544118858,46.1757256,142.91,142.85,161.47133423]
[1768544121465,46.1757256,142.91,142.85,45.47133423]
[1768544129369,46.17561651,142.91,142.85,45.47133423]
[1768544139483,44.5781399,142.91,142.85,51.77423423]
[1768544149399,46.17561651,142.91,142.85,6.3029]
[1768544150096,46.17561651,142.91,142.85,52.2870421]
[1768544154400,44.5781399,142.91,142.85,52.2870421]
[1768544160801,52.62052405,142.93,142.87,49.63078897]
[1768544163199,52.62052405,142.93,142.86,6.3024]
[1768544163508,52.62052405,142.93,142.86,55.93318897]
[1768544166905,52.62052405,142.93,142.86,49.63078897]
[1768544173009,51.02304744,142.93,142.86,49.63078897]
[1768544173208,52.62052405,142.93,142.86,49.63078897]
[1768544174408,52.62052405,142.93,142.86,165.63078897]
[1768544176303,52.62052405,142.93,142.87,49.63078897]
[1768544176510,58.91982405,142.94,142.87,49.63078897]
[1768544179004,52.62052405,142.92,142.87,49.63078897]
[1768544180006,52.62052405,142.92,142.86,116.0]
[1768544180210,52.62052405,142.92,142.84,171.93418897]
[1768544180410,52.62052405,142.92,142.85,49.63078897]
[1768544180806,52.62052405,142.87,142.8,49.63078897]
[1768544183714,52.62052405,142.87,142.8,55.93598897]
[1768544185918,52.62052405,142.87,142.81,51.47244092]
[1768544189319,51.02304744,142.87,142.81,51.47244092]
[1768544189921,51.02304744,142.87,142.81,57.77704092]
[1768544191816,51.02304744,142.87,142.81,173.77704092]
[1768544205926,51.02304744,142.87,142.82,52.14475213]
[1768544206634,53.1807466,142.89,142.82,52.14475213]
[1768544207932,53.1807466,142.89,142.83,58.44835213]
[1768544208128,53.1807466,142.89,142.83,174.44835213]
[1768544210735,53.1807466,142.89,142.84,52.14475213]
[1768544210935,54.77904295,142.93,142.84,52.14475213]
[1768544211230,54.77904295,142.93,142.85,51.08577072]
[1768544212934,54.77904295,142.93,142.86,57.38817072]
[1768544213932,54.77904295,142.93,142.87,6.3021]
[1768544216231,54.77904295,142.93,142.87,57.38787072]
[1768544219137,1.59829635,142.93,142.87,57.38787072]
[1768544221738,1.59829635,142.93,142.89,51.08577072]
[1768544224543,1.59829635,142.94,142.89,51.08577072]
[1768544230346,55.75673451,142.94,142.88,6.3015]
[1768544232548,55.75673451,142.94,142.88,57.38727072]
[1768544233350,55.75673451,142.94,142.88,51.08577072]
[1768544237350,55.75673451,142.94,142.86,57.38807072]
[1768544237545,55.75673451,142.94,142.86,51.08577072]
[1768544238244,55.75673451,142.92,142.86,51.08577072]
[1768544238750,54.15843816,142.92,142.86,51.08577072]
[1768544239144,55.75673451,142.94,142.86,51.08577072]
[1768544239345,55.75673451,142.94,142.86,57.38827072]
[1768544240350,54.15843816,142.96,142.88,51.08577072]
[1768544240550,55.75673451,142.96,142.88,51.08577072]
[1768544243651,54.15843816,142.96,142.88,51.08577072]
[1768544246552,50.60851175,142.94,142.85,59.48369164]
[1768544246854,52.2068081,142.94,142.85,59.48369164]
[1768544251361,55.50449154,142.93,142.85,59.48369164]
[1768544252353,1.5970502,142.93,142.85,59.48369164]
[1768544253661,53.90744134,142.94,142.85,59.48369164]
[1768544253857,53.90744134,142.94,142.87,52.41149669]
[1768544256460,53.90744134,142.94,142.88,52.41149669]
[1768544261561,1.5970502,142.93,142.87,116.0]
[1768544261769,53.90744134,142.92,142.87,116.0]
[1768544262067,53.90744134,142.92,142.87,168.41149669]
[1768544262259,53.90744134,142.92,142.87,52.41149669]
[1768544263870,53.90744134,142.92,142.83,52.41149669]
[1768544264176,53.90744134,142.92,142.84,52.41149669]
[1768544268081,53.90744134,142.92,142.85,52.41149669]
[1768544274083,53.90744134,142.92,142.86,51.85103966]
[1768544313409,55.50477296,142.92,142.86,51.85103966]
[1768544324022,61.80487296,142.92,142.86,51.85103966]
[1768544327532,60.20754134,142.92,142.86,51.85103966]
[1768544327727,61.80487296,142.92,142.86,51.85103966]
[1768544329224,55.50477296,142.92,142.86,51.85103966]
[1768544338738,55.50477296,142.92,142.84,172.50874959]
[1768544339829,61.89018245,142.91,142.84,172.50874959]
[1768544340729,1.59733162,142.9,142.84,172.50874959]
[1768544340934,57.18671407,142.9,142.84,172.50874959]
[1768544342634,57.18671407,142.88,142.82,56.50874959]
[1768544344548,4.92593235,142.87,142.82,56.50874959]
[1768544344739,4.92593235,142.86,142.82,56.50874959]
[1768544344940,4.92593235,142.85,142.82,56.50874959]
[1768544345142,57.18671407,142.88,142.82,56.50874959]
[1768544345342,55.58938245,142.85,142.75,116.0]
[1768544345544,62.11408545,142.84,142.75,116.0]
[1768544345842,4.92737138,142.83,142.75,116.0]
[1768544346030,57.18671407,142.84,142.75,116.0]
[1768544346234,4.92637041,142.83,142.75,116.0]
[1768544346531,57.18671407,142.84,142.75,116.0]
[1768544346733,57.18671407,142.84,142.75,122.3074]
[1768544347339,57.18671407,142.84,142.76,56.50874959]
[1768544347930,57.18671407,142.84,142.76,62.81564959]
[1768544356054,57.18671407,142.84,142.77,56.50874959]
[1768544356955,57.18671407,142.84,142.77,62.81514959]
[1768544357352,1.59733162,142.84,142.77,56.50874959]
[1768544357569,55.58938245,142.86,142.8,56.50874959]
[1768544357764,1.59733162,142.87,142.81,56.50874959]
[1768544358965,1.59733162,142.87,142.81,62.81344959]
[1768544359166,1.59733162,142.87,142.81,56.50874959]
[1768544360769,1.59733162,142.87,142.82,62.81304959]
[1768544360970,1.59733162,142.87,142.82,56.50874959]
[1768544367376,53.4266927,142.9,142.83,55.15404322]
[1768544367769,4.90296623,142.89,142.83,55.15404322]
[1768544367974,53.4266927,142.9,142.83,55.15404322]
[1768544376079,53.4266927,142.9,142.84,55.15404322]
[1768544378083,4.90320428,142.89,142.84,55.15404322]
[1768544378282,53.4266927,142.9,142.84,55.15404322]
[1768544378480,4.90329203,142.89,142.84,55.15404322]
[1768544378782,53.4266927,142.9,142.84,55.15404322]
[1768544378986,4.90329203,142.89,142.84,55.15404322]
[1768544379174,53.4266927,142.9,142.84,55.15404322]
[1768544380986,4.90420384,142.89,142.84,55.15404322]
[1768544381190,53.4266927,142.9,142.84,55.15404322]
[1768544381386,4.90459402,142.89,142.84,55.15404322]
[1768544381691,55.02410287,142.9,142.84,55.15404322]
[1768544381890,4.90471018,142.89,142.84,55.15404322]
[1768544382089,55.02410287,142.9,142.84,55.15404322]
[1768544382290,4.90507893,142.89,142.84,55.15404322]
[1768544382489,55.02410287,142.9,142.84,55.15404322]
[1768544382690,4.90516267,142.89,142.84,55.15404322]
[1768544382884,55.02410287,142.9,142.84,55.15404322]
[1768544383087,4.90516267,142.89,142.84,55.15404322]
[1768544383383,55.02410287,142.9,142.84,55.15404322]
[1768544383583,4.90569333,142.89,142.84,55.15404322]
[1768544383782,55.02410287,142.9,142.84,55.15404322]
[1768544383990,4.90569333,142.89,142.84,55.15404322]
[1768544384293,55.02410287,142.9,142.84,55.15404322]
[1768544384588,4.90568401,142.89,142.84,55.15404322]
[1768544384788,55.02410287,142.9,142.84,55.15404322]
[1768544384990,4.90568401,142.89,142.84,55.15404322]
[1768544385287,55.02410287,142.9,142.84,55.15404322]
[1768544385489,58.33243567,142.89,142.84,55.15404322]
[1768544385790,53.4266927,142.89,142.84,55.15404322]
[1768544392791,53.4266927,142.89,142.76,149.78476819]
[1768544392996,26.77272938,142.81,142.72,51.67886819]
[1768544393894,26.77272938,142.81,142.72,57.98746819]
[1768544394488,26.77272938,142.81,142.74,51.67886819]
[1768544395297,25.17531921,142.81,142.74,51.67886819]
[1768544395496,26.77272938,142.81,142.74,51.67886819]
[1768544395891,1.59741017,142.81,142.74,51.67886819]
[1768544396491,25.84155518,142.83,142.74,57.98656819]
[1768544396696,27.43896535,142.83,142.74,57.98656819]
[1768544399294,1.59741017,142.81,142.74,57.98656819]
[1768544399495,28.0819327,142.81,142.74,51.67886819]
[1768544404604,5.61021593,142.8,142.74,51.67886819]
[1768544404796,5.61021593,142.79,142.74,51.67886819]
[1768544405001,5.61021593,142.78,142.74,51.67886819]
[1768544405303,28.0819327,142.81,142.74,51.67886819]
[1768544405505,5.6086041,142.8,142.74,51.67886819]
[1768544405705,5.6086041,142.79,142.74,51.67886819]
[1768544405905,5.6086041,142.78,142.74,51.67886819]
[1768544406105,28.0819327,142.81,142.74,51.67886819]
[1768544406312,5.6086041,142.8,142.74,51.67886819]
[1768544406506,5.6086041,142.79,142.74,51.67886819]
[1768544406807,5.6086041,142.78,142.74,51.67886819]
[1768544407012,28.0819327,142.81,142.74,51.67886819]
[1768544407214,5.60713322,142.8,142.74,51.67886819]
[1768544407512,5.60713322,142.79,142.74,57.98666819]
[1768544407708,1.59741017,142.82,142.74,57.98666819]
[1768544407917,5.6057754,142.81,142.74,57.98666819]
[1768544408112,5.6057754,142.8,142.74,57.98666819]
[1768544408414,29.69170391,142.82,142.76,51.67886819]
[1768544410014,30.25733802,142.84,142.76,57.98576819]
[1768544410715,28.65992785,142.84,142.78,51.67886819]
[1768544412410,30.62370408,142.86,142.78,51.67886819]
[1768544412617,30.62370408,142.86,142.78,57.98476819]
[1768544414021,30.62370408,142.86,142.78,51.67886819]
[1768544415717,29.02629391,142.86,142.78,51.67886819]
[1768544416117,6.3015,142.89,142.78,51.67886819]
[1768544416322,29.73386803,142.88,142.78,53.27627836]
[1768544418226,29.73386803,142.88,142.8,1.59741017]
[1768544418418,29.73386803,142.88,142.81,51.67886819]
[1768544418917,30.07697866,142.9,142.81,51.67886819]
[1768544420423,5.52629441,142.89,142.81,51.67886819]
[1768544420622,10.83146473,142.88,142.81,51.67886819]
[1768544420826,5.52629441,142.87,142.81,51.67886819]
[1768544421125,5.52629441,142.86,142.81,51.67886819]
[1768544421321,30.07697866,142.9,142.81,51.67886819]
[1768544421523,5.30544266,142.89,142.81,51.67886819]
[1768544421724,30.07697866,142.9,142.83,54.05601387]
[1768544421925,5.30539672,142.89,142.83,54.05601387]
[1768544422119,30.07697866,142.9,142.83,54.05601387]
[1768544422316,5.30551379,142.89,142.83,54.05601387]
[1768544422518,30.07697866,142.9,142.83,54.05601387]
[1768544422713,5.30559417,142.89,142.83,54.05601387]
[1768544422927,5.30559417,142.88,142.83,54.05601387]
[1768544423130,30.07697866,142.9,142.83,54.05601387]
[1768544423322,5.30540493,142.89,142.83,54.05601387]
[1768544423521,5.30540493,142.88,142.83,54.05601387]
[1768544423728,30.07697866,142.9,142.83,54.05601387]
[1768544423924,5.3055829,142.89,142.83,54.05601387]
[1768544424121,5.3055829,142.88,142.83,54.05601387]
[1768544424322,30.07697866,142.9,142.83,54.05601387]
[1768544424521,5.30586303,142.89,142.83,54.05601387]
[1768544424819,5.30586303,142.88,142.83,54.05601387]
[1768544425019,30.07697866,142.9,142.83,54.05601387]
[1768544425220,5.30606435,142.89,142.83,54.05601387]
[1768544425427,5.30606435,142.88,142.83,54.05601387]
[1768544425628,30.07697866,142.9,142.83,54.05601387]
[1768544425925,5.3062166,142.89,142.83,54.05601387]
[1768544426125,30.07697866,142.9,142.83,54.05601387]
[1768544426321,5.30636063,142.89,142.83,54.05601387]
[1768544426517,30.07697866,142.9,142.83,54.05601387]
[1768544427125,5.30637126,142.89,142.83,54.05601387]
[1768544427320,30.07697866,142.9,142.83,54.05601387]
[1768544431133,39.67672915,142.92,142.83,54.05601387]
[1768544431331,43.3854529,142.91,142.83,54.05601387]
[1768544431531,5.30613392,142.9,142.83,54.05601387]
[1768544431722,38.07931898,142.91,142.83,54.05601387]
[1768544432029,5.3057059,142.9,142.83,54.05601387]
[1768544432233,38.07931898,142.91,142.83,54.05601387]
[1768544432435,5.30547879,142.9,142.83,54.05601387]
[1768544432734,38.07931898,142.91,142.83,54.05601387]
[1768544432934,5.30547879,142.9,142.83,54.05601387]
[1768544433125,38.07931898,142.91,142.83,54.05601387]
[1768544433326,10.75757737,142.9,142.83,54.05601387]
[1768544433625,5.45200835,142.89,142.83,54.05601387]
[1768544433820,5.45200835,142.88,142.83,54.05601387]
[1768544434027,38.07931898,142.91,142.83,54.05601387]
[1768544434226,10.75713865,142.9,142.83,54.05601387]
[1768544434530,5.45179479,142.89,142.83,54.05601387]
[1768544434830,38.07931898,142.91,142.83,54.05601387]
[1768544435032,10.66941039,142.9,142.83,54.05601387]
[1768544435232,5.36436932,142.89,142.83,54.05601387]
[1768544435432,38.07931898,142.91,142.83,54.05601387]
[1768544435730,10.66899587,142.9,142.83,54.05601387]
[1768544435930,5.36416568,142.89,142.83,54.05601387]
[1768544436135,38.07931898,142.91,142.83,54.05601387]
[1768544436335,10.66906561,142.9,142.83,54.05601387]
[1768544436636,5.36416568,142.89,142.83,54.05601387]
[1768544436836,38.07931898,142.91,142.83,54.05601387]
[1768544437033,10.66858504,142.9,142.83,54.05601387]
[1768544437232,5.36396381,142.89,142.83,54.05601387]
[1768544437433,38.07931898,142.91,142.83,54.05601387]
[1768544437637,10.66817784,142.9,142.83,54.05601387]
[1768544437936,5.36376369,142.89,142.83,54.05601387]
[1768544438126,38.07931898,142.91,142.83,54.05601387]
[1768544438328,10.66810983,142.9,142.83,54.05601387]
[1768544438530,5.36376369,142.89,142.83,54.05601387]
[1768544438727,38.07931898,142.91,142.83,54.05601387]
[1768544438931,10.66794261,142.9,142.83,54.05601387]
[1768544439128,5.36379743,142.89,142.83,54.05601387]
[1768544439334,38.07931898,142.91,142.83,54.05601387]
[1768544439532,5.3637476,142.9,142.83,54.05601387]
[1768544439729,38.07931898,142.91,142.83,54.05601387]
[1768544439926,5.36362273,142.9,142.83,54.05601387]
[1768544440127,38.07931898,142.91,142.83,54.05601387]
[1768544440334,5.36362668,142.9,142.83,54.05601387]
[1768544440533,5.36362668,142.89,142.83,54.05601387]
[1768544440738,38.07931898,142.91,142.83,54.05601387]
[1768544441035,5.36375738,142.9,142.83,54.05601387]
[1768544441230,5.36375738,142.89,142.83,54.05601387]
[1768544441435,38.07931898,142.91,142.83,54.05601387]
[1768544441736,5.36371104,142.9,142.83,54.05601387]
[1768544442040,5.36371104,142.89,142.83,60.35981387]
[1768544442337,38.07931898,142.91,142.83,60.35981387]
[1768544442537,5.36356946,142.9,142.83,60.35981387]
[1768544442739,38.07931898,142.91,142.83,60.35981387]
[1768544442938,5.36356946,142.9,142.83,60.35981387]
[1768544443137,38.07931898,142.91,142.83,60.35981387]
[1768544443338,5.36356946,142.9,142.83,60.35981387]
[1768544443534,38.07931898,142.91,142.83,60.35981387]
[1768544443735,5.36352547,142.9,142.83,60.35981387]
[1768544444040,38.07931898,142.91,142.83,60.35981387]
[1768544444240,5.36352547,142.9,142.83,60.35981387]
[1768544444543,5.36357822,142.89,142.83,60.35981387]
[1768544444734,38.07931898,142.91,142.83,60.35981387]
[1768544445034,5.36357822,142.9,142.83,60.35981387]
[1768544445239,5.36357822,142.89,142.83,60.35981387]
[1768544445433,38.07931898,142.91,142.83,60.35981387]
[1768544445635,5.36360766,142.9,142.83,60.35981387]
[1768544445840,5.36360766,142.89,142.83,60.35981387]
[1768544446041,38.07931898,142.91,142.83,60.35981387]
[1768544446240,5.36360766,142.9,142.83,60.35981387]
[1768544446441,5.36360766,142.89,142.83,60.35981387]
[1768544446639,38.07931898,142.91,142.83,60.35981387]
[1768544446840,5.36430491,142.9,142.83,60.35981387]
[1768544447043,5.36430491,142.89,142.83,60.35981387]
[1768544447341,38.07931898,142.91,142.83,60.35981387]
[1768544447535,5.36535422,142.9,142.83,60.35981387]
[1768544447736,5.36535422,142.89,142.83,60.35981387]
[1768544447936,38.07931898,142.91,142.83,60.35981387]
[1768544448136,10.67083273,142.9,142.83,60.35981387]
[1768544448333,5.36535422,142.89,142.83,60.35981387]
[1768544448535,38.07931898,142.91,142.83,60.35981387]
[1768544448735,10.67317963,142.9,142.83,60.35981387]
[1768544448933,5.36654781,142.89,142.85,54.90394223]
[1768544449142,38.07931898,142.91,142.85,54.90394223]
[1768544449337,10.67318031,142.9,142.85,54.90394223]
[1768544449537,5.36654849,142.89,142.85,54.90394223]
[1768544449739,38.07931898,142.91,142.85,54.90394223]
[1768544449938,10.67621481,142.9,142.85,54.90394223]
[1768544450138,5.36808701,142.89,142.85,54.90394223]
[1768544450338,38.07931898,142.91,142.85,54.90394223]
[1768544450542,10.67972444,142.9,142.85,54.90394223]
[1768544450841,5.36986443,142.89,142.85,54.90394223]
[1768544451138,38.07931898,142.91,142.85,54.90394223]
[1768544451330,10.64487923,142.9,142.85,54.90394223]
[1768544451536,5.3699487,142.89,142.85,54.90394223]
[1768544451734,5.3699487,142.88,142.85,54.90394223]
[1768544451931,38.07931898,142.91,142.85,54.90394223]
[1768544452143,10.64906765,142.9,142.85,54.90394223]
[1768544452343,5.37207315,142.89,142.85,54.90394223]
[1768544452544,5.37207315,142.88,142.85,54.90394223]
[1768544452744,38.07931898,142.91,142.85,54.90394223]
[1768544452945,10.65389956,142.9,142.85,54.90394223]
[1768544453143,5.37452149,142.89,142.85,54.90394223]
[1768544453342,5.37452149,142.88,142.85,54.90394223]
[1768544453544,38.07931898,142.91,142.85,54.90394223]
[1768544453742,10.65874865,142.9,142.85,54.90394223]
[1768544453939,10.65874865,142.89,142.85,54.90394223]
[1768544454141,5.37697986,142.88,142.85,54.90394223]
[1768544454341,38.07931898,142.91,142.85,54.90394223]
[1768544454547,10.66445468,142.9,142.85,54.90394223]
[1768544454741,10.66445468,142.89,142.85,54.90394223]
[1768544454944,5.37987055,142.88,142.85,54.90394223]
[1768544455139,38.07931898,142.91,142.85,54.90394223]
[1768544455340,10.66445468,142.9,142.85,54.90394223]
[1768544455636,10.66445468,142.89,142.85,54.90394223]
[1768544455840,5.37987055,142.88,142.85,54.90394223]
[1768544456041,5.37987055,142.87,142.85,54.90394223]
[1768544456242,38.07931898,142.91,142.85,54.90394223]
[1768544456443,10.67431269,142.9,142.85,54.90394223]
[1768544456746,10.67431269,142.89,142.85,54.90394223]
[1768544456947,10.67431269,142.88,142.85,54.90394223]
[1768544457149,5.38479061,142.87,142.85,54.90394223]
[1768544457348,38.07931898,142.91,142.85,54.90394223]
[1768544457552,10.67922856,142.9,142.85,54.90394223]
[1768544457745,10.67922856,142.89,142.85,54.90394223]
[1768544457950,10.67922856,142.88,142.85,54.90394223]
[1768544458153,5.38738708,142.87,142.85,54.90394223]
[1768544458351,38.07931898,142.91,142.85,54.90394223]
[1768544458652,10.68252009,142.9,142.85,54.90394223]
[1768544458850,10.68252009,142.89,142.85,54.90394223]
[1768544459051,10.68252009,142.88,142.85,54.90394223]
[1768544459241,5.38906762,142.87,142.85,54.90394223]
[1768544459445,38.07931898,142.91,142.85,54.90394223]
[1768544459641,5.29568178,142.9,142.85,54.90394223]
[1768544459847,5.29568178,142.89,142.85,54.90394223]
[1768544460049,5.29568178,142.88,142.85,54.90394223]
[1768544460248,38.07931898,142.91,142.85,54.90394223]
[1768544460549,5.29754921,142.9,142.85,54.90394223]
[1768544460857,5.29754921,142.89,142.85,54.90394223]
[1768544461055,38.07931898,142.91,142.85,54.90394223]
[1768544461056,5.29754803,142.88,142.85,54.90394223]
[1768544461356,5.29754803,142.87,142.85,54.90394223]
[1768544461556,38.07931898,142.91,142.85,54.90394223]
[1768544461856,5.29913698,142.9,142.85,54.90394223]
[1768544462154,5.29913698,142.89,142.85,54.90394223]
[1768544462346,5.29913698,142.88,142.85,54.90394223]
[1768544462547,5.29913698,142.87,142.85,54.90394223]
[1768544462746,38.07931898,142.91,142.85,54.90394223]
[1768544462950,5.30000894,142.9,142.85,54.90394223]
[1768544463149,5.30000894,142.89,142.85,54.90394223]
[1768544463351,5.30000894,142.88,142.85,54.90394223]
[1768544463653,5.30000894,142.87,142.85,54.90394223]
[1768544463849,38.07931898,142.91,142.85,54.90394223]
[1768544464050,5.30103607,142.9,142.85,54.90394223]
[1768544464250,5.30103607,142.89,142.85,54.90394223]
[1768544464451,5.30103607,142.88,142.85,54.90394223]
[1768544464651,5.30103607,142.87,142.85,54.90394223]
[1768544464853,44.37991898,142.91,142.85,54.90394223]
[1768544465054,5.3014681,142.9,142.85,54.90394223]
[1768544465254,5.3014681,142.89,142.85,54.90394223]
[1768544465451,5.3014681,142.88,142.85,54.90394223]
[1768544465656,5.3014681,142.87,142.85,54.90394223]
[1768544465855,44.37991898,142.91,142.85,54.90394223]
[1768544466054,5.30195235,142.9,142.85,54.90394223]
[1768544466256,5.30195235,142.89,142.85,54.90394223]
[1768544466456,5.30195235,142.88,142.85,54.90394223]
[1768544466657,5.30195235,142.87,142.85,54.90394223]
[1768544466855,44.37991898,142.91,142.85,54.90394223]
[1768544468250,55.70719503,142.93,142.85,54.90394223]
[1768544469856,6.2999,142.93,142.85,54.90394223]
[1768544470073,53.95521935,142.95,142.85,56.50128204]
[1768544471457,5.03901961,142.94,142.85,56.50128204]
[1768544471657,5.03901961,142.93,142.85,56.50128204]
[1768544471858,5.03901961,142.92,142.85,56.50128204]
[1768544472053,47.50455099,142.97,142.85,56.50128204]
[1768544472258,5.03901961,142.96,142.88,59.94170104]
[1768544472560,5.03901961,142.95,142.88,59.94170104]
[1768544472763,5.03901961,142.94,142.88,59.94170104]
[1768544473065,6.298,142.97,142.88,59.94170104]
[1768544473259,5.03509575,142.96,142.88,59.94170104]
[1768544473459,5.03509575,142.95,142.88,59.94170104]
[1768544473665,6.298,142.97,142.88,59.94170104]
[1768544473964,5.03183494,142.96,142.88,59.94170104]
[1768544474163,5.03183494,142.95,142.88,59.94170104]
[1768544474365,6.298,142.97,142.88,59.94170104]
[1768544474565,5.0293199,142.96,142.88,59.94170104]
[1768544474864,5.0293199,142.95,142.88,59.94170104]
[1768544475168,58.61182877,142.99,142.9,59.94170104]
[1768544477867,52.31472877,142.99,142.9,59.94170104]
[1768544478869,5.25474524,142.98,142.9,59.94170104]
[1768544479068,5.25474524,142.97,142.9,59.94170104]
[1768544479269,52.31472877,142.99,142.9,59.94170104]
[1768544479469,5.25282153,142.98,142.9,59.94170104]
[1768544479663,5.25282153,142.97,142.9,59.94170104]
[1768544479873,1.59733981,143.0,142.9,59.94170104]
[1768544480073,5.25228798,142.99,142.9,59.94170104]
[1768544480264,1.59733981,143.0,142.9,59.94170104]
[1768544480977,52.07791335,143.01,142.92,59.94170104]
[1768544483365,52.07791335,143.01,142.93,55.40372112]
[1768544483569,1.59733981,143.02,142.93,55.40372112]
[1768544483765,51.71165616,143.05,142.97,55.40372112]
[1768544483966,1.59733981,143.06,142.97,55.40372112]
[1768544484770,1.59733981,143.06,142.97,61.70132112]
[1768544485078,1.59733981,143.06,142.97,63.29866093]
[1768544486171,56.84348614,143.07,142.99,55.40372112]
[1768544486762,1.59733981,143.08,142.99,55.40372112]
[1768544486971,58.3590643,143.09,142.99,57.00106093]
[1768544487774,56.76172449,143.09,142.99,57.00106093]
[1768544487970,58.3590643,143.09,142.99,57.00106093]
[1768544488171,58.3590643,143.09,142.99,61.70052112]
[1768544489175,56.76172449,143.09,143.01,59.6909185]
[1768544489376,1.59733981,143.09,143.01,59.6909185]
[1768544490875,1.59733981,143.09,143.01,65.9868185]
[1768544492082,56.56415198,143.11,143.01,65.9868185]
[1768544492382,1.59733981,143.09,143.01,65.9868185]
[1768544492880,1.59733981,143.09,143.03,59.6909185]
[1768544495282,57.93718843,143.09,143.03,59.6909185]
[1768544495883,1.59733981,143.07,143.01,59.6909185]
[1768544496381,57.90132392,143.07,143.01,59.6909185]
[1768544497483,1.59733981,143.06,143.01,59.6909185]
[1768544499282,56.30398411,143.07,143.01,59.6909185]
[1768544499479,1.59393536,143.06,143.01,59.6909185]
[1768544500877,56.30398411,143.07,143.01,59.6909185]